{"text_format":"1","workbook":"xlsx","n_sheets":2,"sheets":["nevezes","Munka2"],"not_rendered":{"charts":0,"images":4,"macros":0,"external_links":0,"defined_names":4,"comments":1,"pivot_tables":0},"unopened":[],"bounds":{"document_bytes":16777216,"sheet_cells":100000,"rows_first":2000,"rows_last":500,"rows_between":2000,"halvings":0,"cell_chars":16384,"cell_head_chars":4096},"cells_cut":0,"cells_raw":0,"read":"whole","date_system":"1900"}

{"sheet":"nevezes","index":0,"n_rows":49,"n_cols":6,"rows_kept":49,"cut":false,"hidden":false,"merged":[[47,1,47,5],[16,1,16,5],[14,2,14,5],[13,2,13,5],[4,1,4,5],[41,2,42,5],[37,2,37,5],[38,2,38,5],[39,2,39,5],[40,2,40,5],[44,1,45,5],[33,2,33,5],[1,1,1,5],[29,1,29,5],[30,1,30,5],[31,1,31,5],[17,1,17,5]]}
[]
[]
[]
[]
[null,"NEVEZÉSI LAP"]
[]
[]
[]
[null,"Helyszíne:","Székesfehérvár, Csónakázó-tó","         Rendező:","Dragon Aktív Kft."]
[null,"Dátuma:","2022.09.24. (szombat)","         Támogató:","Magyar Sárkányhajó Szövetség"]
[null,"Nevezési határidő: ","2022.09.16. 24 óra"]
[]
[]
[null,"Csapat név:"]
[null,"Egyesület neve:","Válassz!"]
[]
[null,"A nevezéseket a megfelelő mezőben számmal jelölve kérjük leadni, annak megfelelően, hány"]
[null,"legénységet kíván indítani adott kategóriában."]
[]
[]
[null,null,"Marathon Open Kupa",null,null,"Open Kupa"]
[null,null,"Házisárkányok Kupája",null,null,"Vegyes Kupa"]
[]
[null,null,"Nevezett legénységek összesen:",null,{"$f":"SUM(E21:E22,B21:B22)","v":0}]
[]
[]
[null,"Nevezés módja:"]
[null,"Hiánytalanul kitöltött excel formátumú táblázat visszaküldése az alábbi címre:"]
[null,null,"nyilvantartas@sarkanyhajozas.hu"]
[null,"A nevezést csak a nevezési díj befizetésével vagy átutalásával együtt fogadjuk el!"]
[null,"Kérjük, átutalás esetén, megjegyzésként írják meg az átutaló címét és a legénység nevét!"]
[null,"A számlát a számlatulajdonos nevére és címére áll módunkban kiállítani."]
[]
[null,"Számlázási név, cím:"]
[]
[null,"Bankszámlaszám: ","Dragon Aktív Kft. ","OTP Bank ",null,"11705998 - 21264007"]
[]
[null,"Képviselő neve:"]
[null,"Címe:"]
[null,"E-mail:"]
[null,"Tel:"]
[null,"Megjegyzés:"]
[]
[]
[null,"      Jó versenyzést kívunk!"]
[]
[]
[]
[null,null,{"$f":"\"Fadd10\"&\"_\"&C15&\"_\"&C14","v":"Fadd10_Válassz!_"}]

{"sheet":"Munka2","index":1,"n_rows":5,"n_cols":27,"rows_kept":5,"cut":false,"hidden":false,"merged":[]}
["nevezés száma","Csapat neve","Egyesület neve","Kategória","Verseny neve","Képviselő","e-mail","telefonszám",null,null,null,null,null,null,null,null,null,null,null,null,null,null,null,"Csapatnév","Egyesület neve","Kategória","Verseny neve"]
[{"$f":"nevezes!$B$21","v":0},{"$f":"nevezes!$C$14","v":0},{"$f":"nevezes!$C$15","v":"Válassz!"},"Marathon Open Kupa","17. Székesfehérvári Sárkányhajó Fesztivál",{"$f":"nevezes!$C$38","v":0},{"$f":"nevezes!$C$40","v":0},{"$f":"nevezes!$C$41","v":0}]
[{"$f":"nevezes!$B$22","v":0},{"$f":"nevezes!$C$14","v":0},{"$f":"nevezes!$C$15","v":"Válassz!"},"Házisárkányok Kupája","17. Székesfehérvári Sárkányhajó Fesztivál",{"$f":"nevezes!$C$38","v":0},{"$f":"nevezes!$C$40","v":0},{"$f":"nevezes!$C$41","v":0}]
[{"$f":"nevezes!$E$21","v":0},{"$f":"nevezes!$C$14","v":0},{"$f":"nevezes!$C$15","v":"Válassz!"},"Open Kupa","17. Székesfehérvári Sárkányhajó Fesztivál",{"$f":"nevezes!$C$38","v":0},{"$f":"nevezes!$C$40","v":0},{"$f":"nevezes!$C$41","v":0}]
[{"$f":"nevezes!$E$22","v":0},{"$f":"nevezes!$C$14","v":0},{"$f":"nevezes!$C$15","v":"Válassz!"},"Vegyes Kupa","17. Székesfehérvári Sárkányhajó Fesztivál",{"$f":"nevezes!$C$38","v":0},{"$f":"nevezes!$C$40","v":0},{"$f":"nevezes!$C$41","v":0}]